{"text_format":"3","workbook":"xlsx","n_sheets":1,"sheets":["тестовый"],"not_rendered":{"external_links":1},"read":"whole","date_system":"1900"}

{"sheet":"тестовый","index":0,"n_rows":5,"n_cols":17,"rows_kept":5,"merged":[[0,0,0,16]]}
["Протокол по итогам муниципального этапа ВсОШ по предмету \"Марийский язык и литература\"  Менделеевского муниципального района в 2019-2020 учебном году "]
["№ п/п","Муниципалитет","Полное наименование образовательного учреждения (по уставу)","Фамилия","Имя","Отчество","Класс","Дата рождения","Пол","Балл","Апеляционный балл","Итоговый балл","Максимальный балл","Статус","Фамилия, имя, отчество педагога, подготовившего участника олимпиады","Полное наименование образовательного учреждения (по уставу)","Предмет"]
[{"$f":"[1]Лист1!A3","v":1},{"$f":"[1]Лист1!B3","v":"Менделеевский"},{"$f":"[1]Лист1!C3","v":"МБОУ \"Монашевская СОШ\""},{"$f":"[1]Лист1!D3","v":"Семенова"},{"$f":"[1]Лист1!E3","v":"Ульяна"},null,{"$f":"[1]Лист1!G3","v":7},null,{"$f":"[1]Лист1!I3","v":"ж"},{"$f":"[1]Лист1!J3","v":71},{"$f":"[1]Лист1!K3","v":0},{"$f":"[1]Лист1!L3","v":71},{"$f":"[1]Лист1!M3","v":102},{"$f":"[1]Лист1!N3","v":"Победитель"},{"$f":"[1]Лист1!O3","v":"Андреева С.Р"},{"$f":"[1]Лист1!P3","v":"МБОУ \"Монашевская СОШ\""},{"$f":"[1]Лист1!Q3","v":"Марийский язык и литература"}]
[{"$f":"[1]Лист1!A4","v":2},{"$f":"[1]Лист1!B4","v":"Менделеевский"},{"$f":"[1]Лист1!C4","v":"МБОУ \"Ильнетская СОШ имени Микая (Герасимова М.С.)\""},{"$f":"[1]Лист1!D4","v":"Андреева "},{"$f":"[1]Лист1!E4","v":"Аделина"},null,{"$f":"[1]Лист1!G4","v":8},null,{"$f":"[1]Лист1!I4","v":"ж"},{"$f":"[1]Лист1!J4","v":68},{"$f":"[1]Лист1!K4","v":0},{"$f":"[1]Лист1!L4","v":68},{"$f":"[1]Лист1!M4","v":97},{"$f":"[1]Лист1!N4","v":"Победитель"},{"$f":"[1]Лист1!O4","v":"Семякова Е.Б."},{"$f":"[1]Лист1!P4","v":"МБОУ \"Ильнетская СОШ имени Микая (Герасимова М.С.)\""},{"$f":"[1]Лист1!Q4","v":"Марийский язык и литература"}]
[{"$f":"[1]Лист1!A5","v":3},{"$f":"[1]Лист1!B5","v":"Менделеевский"},{"$f":"[1]Лист1!C5","v":"МБОУ \"Ильнетская СОШ имени Микая (Герасимова М.С.)\""},{"$f":"[1]Лист1!D5","v":"Сарбашева "},{"$f":"[1]Лист1!E5","v":"Ангелина"},null,{"$f":"[1]Лист1!G5","v":9},null,{"$f":"[1]Лист1!I5","v":"ж"},{"$f":"[1]Лист1!J5","v":76},{"$f":"[1]Лист1!K5","v":0},{"$f":"[1]Лист1!L5","v":76},{"$f":"[1]Лист1!M5","v":106},{"$f":"[1]Лист1!N5","v":"Победитель"},{"$f":"[1]Лист1!O5","v":"Семякова Е.Б."},{"$f":"[1]Лист1!P5","v":"МБОУ \"Ильнетская СОШ имени Микая (Герасимова М.С.)\""},{"$f":"[1]Лист1!Q5","v":"Марийский язык и литература"}]